bitfinex/quotes_SOLUSD_20240712
["timestamp","ask_amount","ask_price","bid_price","bid_amount"]
[1720765309745,4.44592547,136.44,136.37,6.5738]
[1720765309936,4.44592547,136.43,136.37,6.5738]
[1720765310132,20.0,136.45,136.37,6.5738]
[1720765310334,4.44592012,136.44,136.37,6.5738]
[1720765310533,4.44592012,136.43,136.37,6.5738]
[1720765310750,18.70244473,136.47,136.37,6.5738]
[1720765310942,18.70244473,136.47,136.37,35.5438]
[1720765310943,77.40064171,136.46,136.37,35.5438]
[1720765311145,4.44588003,136.45,136.37,35.5438]
[1720765311458,72.3282,136.46,136.37,35.5438]
[1720765311655,4.4458643,136.45,136.37,35.5438]
[1720765311843,4.4458643,136.44,136.38,0.90457287]
[1720765312162,72.3282,136.46,136.38,0.90457287]
[1720765312348,4.44586344,136.45,136.38,0.90457287]
[1720765312655,4.44586344,136.44,136.41,14.48]
[1720765312860,14.48,136.45,136.41,14.48]
[1720765313160,4.44583099,136.44,136.41,14.48]
[1720765313361,4.44583099,136.44,136.4,14.48]
[1720765313543,4.4458896,136.43,136.4,14.48]
[1720765313855,21.8087,136.45,136.4,14.48]
[1720765314034,4.44592969,136.44,136.4,14.48]
[1720765314239,4.44592969,136.43,136.41,14.48]
[1720765314538,72.3283,136.46,136.41,14.48]
[1720765314751,4.44590519,136.45,136.41,14.48]
[1720765315059,86.8083,136.46,136.41,14.48]
[1720765315227,4.44585823,136.44,136.42,14.48]
[1720765315427,25.85464473,136.47,136.42,14.48]
[1720765315634,18.18786338,136.47,136.43,14.48]
[1720765316028,3.70786338,136.47,136.42,20.4806]
[1720765316249,0.8446084,136.47,136.43,14.48]
[1720765317253,22.6522084,136.47,136.43,14.48]
[1720765317657,15.3246084,136.47,136.43,14.48]
[1720765317828,4.44450063,136.46,136.43,14.48]
[1720765318340,4.44450063,136.46,136.42,6.0006]
[1720765318542,4.44450063,136.46,136.43,14.48]
[1720765318954,4.44450063,136.45,136.43,14.48]
[1720765319161,15.3246084,136.47,136.43,14.48]
[1720765319162,0.8446084,136.47,136.43,14.48]
[1720765319336,4.44484182,136.46,136.43,14.48]
[1720765319537,4.44484182,136.45,136.43,14.48]
[1720765319752,0.8446084,136.47,136.43,14.48]
[1720765319953,4.4448242,136.46,136.43,14.48]
[1720765320258,4.4448242,136.45,136.43,14.48]
[1720765320435,4.4448242,136.46,136.43,14.48]
[1720765321037,4.44484095,136.45,136.43,14.48]
[1720765321253,0.8446084,136.47,136.43,14.48]
[1720765321443,4.44483525,136.46,136.43,14.48]
[1720765321754,4.44483525,136.45,136.43,14.48]
[1720765321946,4.44483525,136.45,136.4,16.3638]
[1720765321947,15.3246084,136.47,136.4,16.3638]
[1720765322150,14.48,136.44,136.4,16.3638]
[1720765322335,21.8094,136.44,136.4,16.3638]
[1720765322538,21.8094,136.44,136.39,14.48]
[1720765322734,4.4458611,136.43,136.39,14.48]
[1720765322953,4.44594637,136.42,136.36,16.1095]
[1720765323157,21.81,136.43,136.38,14.48]
[1720765323463,4.44651718,136.42,136.38,14.48]
[1720765323659,14.48,136.43,136.38,14.48]
[1720765323959,4.44628917,136.42,136.38,14.48]
[1720765324155,21.8098,136.43,136.38,14.48]
[1720765324351,4.44647874,136.42,136.38,14.48]
[1720765324660,7.3293,136.44,136.39,14.48]
[1720765324965,4.4463034,136.43,136.39,14.48]
[1720765325164,4.4463034,136.42,136.39,14.48]
[1720765325351,18.9263034,136.43,136.38,14.48]
[1720765325663,4.44632552,136.42,136.38,14.48]
[1720765325854,14.48,136.43,136.38,14.48]
[1720765326043,18.92628761,136.42,136.36,16.1095]
[1720765326238,21.8103,136.42,136.37,14.48]
[1720765326458,14.48,136.42,136.37,14.48]
[1720765326643,7.67341741,136.44,136.41,14.48]
[1720765326961,7.3288,136.45,136.4,14.48]
[1720765327261,4.44577585,136.44,136.4,14.48]
[1720765327464,4.44577585,136.44,136.42,14.48]
[1720765327634,0.8446084,136.47,136.43,14.48]
[1720765327842,4.44438679,136.46,136.43,14.48]
[1720765328062,0.8446084,136.47,136.43,14.48]
[1720765328268,4.44438766,136.46,136.43,14.48]
[1720765328444,0.8446084,136.47,136.43,14.48]
[1720765328645,4.44476539,136.46,136.43,14.48]
[1720765328841,0.8446084,136.47,136.42,14.48]
[1720765329052,4.44528341,136.46,136.42,14.48]
[1720765329265,4.44528341,136.45,136.43,14.48]
[1720765329470,0.8446084,136.47,136.43,14.48]
[1720765329653,4.44482233,136.46,136.43,14.48]
[1720765329966,0.8446084,136.47,136.43,14.48]
[1720765330167,4.44468191,136.46,136.43,14.48]
[1720765330346,0.8446084,136.47,136.43,14.48]
[1720765330556,0.8446084,136.47,136.41,16.4296]
[1720765335550,10.8446084,136.47,136.38,15.802]
[1720765335758,76.77359001,136.46,136.38,15.802]
[1720765335965,11.77369001,136.45,136.38,15.802]
[1720765336153,7.3286,136.45,136.38,15.802]
[1720765336358,45.0,136.44,136.38,15.802]
[1720765336552,7.3285,136.46,136.38,15.802]
[1720765336761,49.44584405,136.45,136.38,15.802]
[1720765336967,4.44584405,136.44,136.38,15.802]
[1720765337350,4.44584405,136.46,136.38,15.802]
[1720765337553,52.3287,136.45,136.38,15.802]
[1720765337756,4.44584405,136.44,136.38,15.802]
[1720765338173,7.3297,136.43,136.38,15.802]
[1720765338772,4.44655668,136.42,136.38,15.802]
[1720765338955,7.3297,136.43,136.38,15.802]
[1720765339147,4.44655011,136.42,136.38,15.802]
[1720765339472,52.6728195,136.45,136.38,15.802]
[1720765339665,4.44561336,136.44,136.38,15.802]
[1720765339978,27.3282,136.46,136.38,15.802]
[1720765340176,4.44569123,136.45,136.38,15.802]
[1720765340479,4.44569123,136.44,136.38,15.802]
[1720765340685,4.44569123,136.46,136.38,15.802]
[1720765340854,4.44569123,136.45,136.38,15.802]
[1720765341169,0.8446084,136.47,136.38,15.802]
[1720765341466,4.44451249,136.46,136.38,15.802]
[1720765341778,0.8446084,136.47,136.39,45.0]
[1720765341952,7.3291,136.45,136.38,15.802]
[1720765342263,7.3283,136.46,136.38,15.802]
[1720765342472,4.44494056,136.45,136.38,15.802]
[1720765342648,20.8446084,136.47,136.38,15.802]
[1720765342849,49.44491887,136.46,136.38,15.802]
[1720765343051,4.44491887,136.45,136.38,15.802]
[1720765343267,20.0,136.46,136.38,15.802]
[1720765343466,4.44492437,136.45,136.38,15.802]
[1720765343676,20.0,136.46,136.38,15.802]
[1720765343873,4.44490468,136.45,136.39,0.6463214]
[1720765344181,0.8446084,136.47,136.39,45.0]
[1720765344475,4.44486928,136.46,136.39,45.0]
[1720765344679,4.44486928,136.45,136.38,15.802]
[1720765344981,0.8446084,136.47,136.38,15.802]
[1720765345158,7.329,136.45,136.38,15.802]
[1720765345471,4.44511331,136.44,136.38,15.802]
[1720765345690,4.44511331,136.46,136.38,15.802]
[1720765345853,4.44524342,136.45,136.38,15.802]
[1720765346151,4.44524342,136.44,136.38,15.802]
[1720765346353,7.3282,136.46,136.38,15.802]
[1720765346571,4.44511755,136.45,136.38,15.802]
[1720765346779,7.3287,136.45,136.38,15.802]
[1720765346951,24.4454835,136.44,136.38,15.802]
[1720765347153,11.7753835,136.43,136.38,15.802]
[1720765347355,4.4454835,136.42,136.38,15.802]
[1720765347571,27.3293,136.44,136.38,15.802]
[1720765347771,48.1041084,136.47,136.38,15.802]
[1720765347772,4.44604956,136.43,136.38,15.802]
[1720765348078,0.8446084,136.47,136.38,15.802]
[1720765348079,20.0,136.46,136.38,15.802]
[1720765348281,4.44506319,136.45,136.38,15.802]
[1720765348585,20.0,136.46,136.38,15.802]
[1720765348764,4.44486454,136.45,136.38,15.802]
[1720765348969,20.0,136.46,136.38,15.802]
[1720765349182,4.44464128,136.45,136.38,15.802]
[1720765349380,20.0,136.46,136.38,15.802]
[1720765350258,8.1724084,136.47,136.38,15.802]
[1720765350456,4.44459616,136.46,136.38,15.802]
[1720765350778,8.1723084,136.47,136.38,15.802]
[1720765350979,4.44456122,136.46,136.38,15.802]
[1720765351180,8.1723084,136.47,136.38,15.802]
[1720765351370,4.44456778,136.46,136.38,15.802]
[1720765351685,7.3301,136.43,136.38,15.802]
[1720765351892,7.3312,136.41,136.33,22.6667]
[1720765352091,4.4475933,136.4,136.33,22.6667]
[1720765352280,11.7796933,136.39,136.33,22.6667]
[1720765352476,7.3321,136.39,136.33,22.6667]
[1720765353884,38.3257,136.42,136.33,22.6667]
[1720765354187,7.333,136.37,136.33,16.518]
[1720765354392,7.67651109,136.45,136.34,6.2172]
[1720765354559,7.3298,136.43,136.34,6.2172]
[1720765354762,4.44849933,136.42,136.34,6.2172]
[1720765354990,7.3298,136.43,136.34,6.2172]
[1720765355389,4.44660355,136.42,136.34,6.2172]
[1720765355589,7.3303,136.42,136.34,6.2172]
[1720765355768,7.3299,136.43,136.34,6.2172]
[1720765355969,7.3303,136.42,136.35,1.08785764]
[1720765356169,7.3303,136.42,136.36,1.08777786]
[1720765356375,7.67651109,136.45,136.36,1.08777786]
[1720765356576,76.77592351,136.44,136.36,1.08777786]
[1720765356773,4.44642351,136.43,136.36,1.08777786]
[1720765357482,4.44642351,136.43,136.35,45.0]
[1720765358701,7.3298,136.43,136.34,6.2172]
[1720765359577,7.3303,136.42,136.34,6.2172]
[1720765360290,20.0,136.44,136.34,6.2172]
[1720765360494,49.44647325,136.43,136.34,6.2172]
[1720765360666,45.0,136.43,136.34,6.2172]
[1720765360866,20.0,136.44,136.34,6.2172]
[1720765361071,49.44648552,136.43,136.34,6.2172]
[1720765361275,11.77718552,136.42,136.34,6.2172]
[1720765361573,7.3307,136.42,136.34,6.2172]
[1720765361888,52.3299,136.43,136.34,6.2172]
[1720765362387,11.77701185,136.42,136.34,6.2172]
[1720765362685,7.3303,136.42,136.34,6.2172]
[1720765362889,15.003592,136.42,136.34,6.2172]
[1720765363473,31.77832111,136.41,136.34,6.2172]
[1720765363682,4.44742111,136.4,136.34,6.2172]
[1720765365176,20.0,136.41,136.34,6.2172]
[1720765365574,27.3311,136.41,136.34,6.2172]
[1720765365795,20.0,136.41,136.34,6.2172]
[1720765367470,27.3311,136.41,136.34,6.2172]
[1720765373195,20.0,136.41,136.34,6.2172]
[1720765373906,15.003692,136.42,136.34,6.2172]
[1720765374099,20.0,136.41,136.34,6.2172]
[1720765374412,27.3308,136.41,136.34,6.2172]
[1720765374703,14.49,136.39,136.34,20.7072]
[1720765379097,14.49,136.38,136.34,6.2172]
[1720765381191,14.49,136.39,136.34,20.7072]
[1720765381400,14.49,136.4,136.35,14.49]
[1720765381583,14.49,136.41,136.35,14.49]
[1720765382129,10.19047271,136.42,136.35,14.49]
[1720765382407,14.49,136.41,136.36,14.49]
[1720765382990,21.8208,136.41,136.36,14.49]
[1720765384217,7.6750061,136.43,136.37,15.4177]
[1720765384516,14.49,136.44,136.39,14.49]
[1720765384715,21.8192,136.44,136.39,14.49]
[1720765385122,21.8192,136.44,136.37,15.4177]
[1720765385123,14.49,136.43,136.37,15.4177]
[1720765385302,14.49,136.42,136.37,29.9077]
[1720765385695,14.49,136.42,136.38,1.46440364]
[1720765386395,29.793958,136.47,136.39,6.1022]
[1720765386595,14.49,136.43,136.39,6.1022]
[1720765388921,11.474658,136.47,136.4,15.9708]
[1720765389127,8.51783084,136.47,136.46,14.49]
[1720765389296,0.8446084,136.47,136.46,14.49]
[1720765389622,0.8446084,136.47,136.44,6.0247]
[1720765389924,0.8446084,136.47,136.44,20.5147]
[1720765390505,0.8446084,136.47,136.44,6.0247]
[1720765390834,0.8446084,136.47,136.45,1.46547849]
[1720765391406,0.8446084,136.47,136.44,7.49024182]
[1720765392607,0.8446084,136.47,136.44,6.0247]
[1720765394121,0.8446084,136.47,136.42,15.9708]
[1720765400328,0.8446084,136.47,136.43,0.55808686]
[1720765401024,0.8446084,136.47,136.42,16.5290526]
[1720765401424,0.8446084,136.47,136.43,7.05432294]
[1720765404314,0.8446084,136.47,136.43,29.12432294]
[1720765404649,7.321,136.6,136.47,44.1555]
[1720765404939,7.321,136.6,136.49,28.94]
[1720765405107,33.30589622,136.62,136.5,1.38183266]
[1720765405108,7.3211,136.59,136.5,1.38183266]
[1720765405307,21.9941,136.6,136.5,1.38183266]
[1720765405538,7.322,136.58,136.48,1.38183266]
[1720765405724,7.322,136.58,136.47,22.0855]
[1720765405725,7.322,136.58,136.49,1.38317249]
[1720765405930,38.94,136.59,136.49,1.38317249]
[1720765406124,20.0,136.57,136.49,1.38317249]
[1720765406323,20.0,136.58,136.49,1.38317249]
[1720765406539,7.3232,136.56,136.49,1.38317249]
[1720765406741,20.0,136.55,136.48,1.38344271]
[1720765407048,27.3233,136.55,136.48,1.38352891]
[1720765407251,52.3243,136.54,136.47,22.0855]
[1720765407542,20.0,136.53,136.48,1.3832252]
[1720765407747,7.3232,136.56,136.49,1.38318669]
[1720765407940,27.3232,136.56,136.49,1.38318669]
[1720765408720,27.3232,136.56,136.48,1.38318669]
[1720765408922,27.3232,136.56,136.49,1.38308535]
[1720765409750,27.3231,136.56,136.49,1.38308535]
[1720765409949,27.3231,136.56,136.48,1.38523073]
[1720765409950,20.0,136.56,136.48,1.38523073]
[1720765410153,45.0,136.55,136.48,1.38523073]
[1720765410329,20.0,136.54,136.48,1.38523073]
[1720765410529,20.0,136.54,136.47,22.0855]
[1720765411838,27.3239,136.54,136.47,22.0855]
[1720765412637,14.46,136.52,136.47,36.5455]
[1720765412842,14.46,136.52,136.48,0.92841436]
[1720765413954,20.0,136.54,136.48,0.92841436]
[1720765414259,20.0,136.54,136.49,14.46]
[1720765414555,34.46,136.54,136.49,14.46]
[1720765415335,14.46,136.53,136.48,15.78776742]
[1720765416036,14.46,136.53,136.48,1.32776742]
[1720765416249,14.46,136.53,136.48,15.78776742]
[1720765416755,34.46,136.54,136.49,14.46]
[1720765417052,20.0,136.54,136.5,15.92496186]
[1720765417255,20.0,136.54,136.5,14.46]
[1720765417946,14.46,136.55,136.5,14.46]
[1720765418148,20.0,136.54,136.5,14.46]
[1720765419061,7.66100098,136.57,136.51,1.46495476]
[1720765419257,14.46,136.59,136.53,15.5337]
[1720765419738,14.46,136.58,136.53,15.5337]
[1720765419945,14.46,136.58,136.53,29.9937]
[1720765420146,14.46,136.57,136.53,15.5337]
[1720765422369,14.46,136.57,136.53,29.9937]
[1720765422668,14.46,136.58,136.53,29.9937]
[1720765422839,20.0,136.57,136.53,29.9937]
[1720765424853,14.46,136.58,136.53,29.9937]
[1720765425054,20.0,136.57,136.53,29.9937]
[1720765425863,34.46,136.58,136.54,14.46]
[1720765426156,34.46,136.58,136.53,29.9937]
[1720765426962,41.7818,136.58,136.53,29.9937]
[1720765427957,14.46,136.57,136.53,15.5337]
[1720765428261,34.46,136.58,136.53,29.9937]
[1720765429965,42.11805868,136.58,136.53,29.9937]
[1720765433966,27.65805868,136.58,136.54,14.46]
[1720765434165,42.11805868,136.58,136.53,29.9937]
[1720765434461,27.65805868,136.58,136.53,29.9937]
[1720765434763,42.11805868,136.58,136.53,29.9937]
[1720765436264,42.11805868,136.58,136.53,15.5337]
[1720765436458,42.11805868,136.58,136.53,29.9937]
[1720765436970,22.11805868,136.58,136.54,14.46]
[1720765437658,22.11805868,136.58,136.53,29.9937]
[1720765438868,7.65805868,136.58,136.48,16.2684]
[1720765439059,14.46,136.54,136.49,14.46]
[1720765439260,14.46,136.55,136.5,14.46]
[1720765439463,20.0,136.54,136.5,14.46]
[1720765439683,65.0,136.54,136.5,14.46]
[1720765440171,20.0,136.54,136.5,14.46]
[1720765440355,34.46,136.56,136.51,14.46]
[1720765440873,14.46,136.55,136.51,14.46]
[1720765441262,7.65953446,136.57,136.51,14.46]
[1720765441572,34.46,136.56,136.51,14.46]
[1720765442196,20.0,136.56,136.52,14.46]
[1720765442475,20.0,136.56,136.53,30.2301]
[1720765442650,34.46,136.57,136.53,15.7701]
[1720765443068,20.0,136.57,136.53,31.69488911]
[1720765443468,20.0,136.57,136.54,14.46]
[1720765443672,20.0,136.58,136.54,14.46]
[1720765443875,34.46,136.58,136.53,31.69488911]
[1720765444184,41.7817,136.58,136.53,15.7701]
[1720765444364,14.46,136.57,136.53,15.7701]
[1720765444768,14.46,136.57,136.48,15.0009]
[1720765444965,14.46,136.56,136.51,14.46]
[1720765445276,21.7828,136.56,136.48,15.0009]
[1720765445474,34.46,136.55,136.5,14.46]
[1720765445953,7.65917239,136.59,136.52,14.46]
[1720765446154,7.65917239,136.59,136.53,29.8362]
[1720765446155,49.43982231,136.58,136.53,29.8362]
[1720765446475,20.0,136.57,136.53,29.8362]
[1720765447379,45.0,136.58,136.54,14.46]
[1720765447555,7.65917239,136.59,136.54,14.46]
[1720765447762,24.43901183,136.58,136.54,14.46]
[1720765447964,34.46,136.58,136.53,29.8362]
[1720765449476,4.43901297,136.57,136.53,29.8362]
[1720765449676,34.46,136.58,136.53,29.8362]
[1720765451273,4.43895022,136.57,136.53,29.8362]
[1720765451587,34.46,136.58,136.53,29.8362]
[1720765451770,4.43895108,136.57,136.53,29.8362]
[1720765452078,34.46,136.58,136.53,29.8362]
[1720765452378,20.0,136.58,136.56,14.46]
[1720765452964,20.0,136.58,136.55,14.46]
[1720765453572,4.43890644,136.57,136.53,21.4103]
[1720765453774,20.0,136.58,136.54,14.46]
[1720765453976,4.4389335,136.57,136.54,14.46]
[1720765454180,20.0,136.58,136.54,14.46]
[1720765454376,4.43900071,136.57,136.53,35.8703]
[1720765454706,34.46,136.58,136.53,35.8703]
[1720765454881,4.43900243,136.57,136.53,35.8703]
[1720765455071,34.46,136.58,136.53,35.8703]
[1720765455267,4.43889802,136.57,136.53,35.8703]
[1720765455567,34.46,136.58,136.53,35.8703]
[1720765455782,4.43889802,136.57,136.53,35.8703]
[1720765455965,34.46,136.58,136.53,35.8703]
[1720765456166,4.43889147,136.57,136.54,14.46]
[1720765456371,20.0,136.58,136.54,14.46]
[1720765456665,4.43878791,136.57,136.54,14.46]
[1720765456869,20.0,136.58,136.54,14.46]
[1720765457060,4.43878136,136.57,136.54,14.46]
[1720765457285,20.0,136.58,136.55,14.46]
[1720765457594,4.43878136,136.57,136.55,14.46]
[1720765457767,20.0,136.58,136.55,14.46]
[1720765457967,4.43878049,136.57,136.53,15.3762]
[1720765458166,18.89926747,136.56,136.53,15.3762]
[1720765458369,14.46,136.56,136.53,15.3762]
[1720765459695,14.46,136.56,136.51,14.46]
[1720765460070,20.0,136.58,136.51,14.46]
[1720765460274,4.43910741,136.57,136.53,14.46]
[1720765460588,34.46,136.58,136.54,14.46]
[1720765460777,4.43896143,136.57,136.54,14.46]
[1720765460979,4.43896143,136.56,136.53,14.46]
[1720765461295,14.46,136.57,136.53,14.46]
[1720765461479,4.43898786,136.56,136.53,14.46]
[1720765461793,14.46,136.57,136.52,14.46]
[1720765461993,4.43900165,136.56,136.52,14.46]
[1720765462390,14.46,136.57,136.53,14.46]
[1720765462700,4.43892428,136.56,136.53,14.46]
[1720765462998,14.46,136.58,136.53,14.46]
[1720765463173,4.43898855,136.57,136.53,14.46]
[1720765463375,4.43898855,136.56,136.52,14.46]
[1720765465785,4.43914306,136.55,136.52,14.46]
[1720765466092,14.46,136.57,136.52,14.46]
[1720765466295,4.4391422,136.56,136.52,14.46]
[1720765466507,4.4391422,136.55,136.52,14.46]
[1720765466685,4.4391422,136.56,136.52,14.46]
[1720765466889,14.46,136.57,136.52,14.46]
[1720765467097,4.43910522,136.56,136.52,14.46]
[1720765467284,14.46,136.57,136.52,14.46]
[1720765467619,4.43910522,136.56,136.52,14.46]
[1720765467781,14.46,136.57,136.52,14.46]
[1720765467979,18.89913635,136.56,136.51,14.46]
[1720765468185,4.43913635,136.55,136.51,14.46]
[1720765468807,14.46,136.56,136.51,14.46]
[1720765469269,4.43914514,136.55,136.51,14.46]
[1720765469470,14.46,136.56,136.51,14.46]
[1720765469680,4.439146,136.55,136.51,14.46]
[1720765469886,14.46,136.56,136.51,14.46]
[1720765470096,4.43914462,136.55,136.51,14.46]
[1720765470302,14.46,136.56,136.51,14.46]
[1720765470480,4.43914462,136.55,136.51,14.46]
[1720765470803,14.46,136.56,136.51,14.46]
[1720765470996,4.43920803,136.55,136.51,14.46]
[1720765471203,14.46,136.56,136.51,14.46]
[1720765471501,4.43920803,136.55,136.51,14.46]
[1720765471691,14.46,136.56,136.51,14.46]
[1720765471895,4.43914548,136.55,136.51,14.46]
[1720765472201,14.46,136.56,136.51,14.46]
[1720765472379,4.43914548,136.55,136.51,14.46]
[1720765472584,14.46,136.56,136.51,14.46]
[1720765472779,4.43910764,136.55,136.51,14.46]
[1720765472980,14.46,136.56,136.51,14.46]
[1720765473186,4.43910678,136.55,136.51,14.46]
[1720765473387,14.46,136.56,136.51,14.46]
[1720765473600,4.43915203,136.55,136.51,14.46]
[1720765473790,14.46,136.56,136.51,14.46]
[1720765474000,4.43915117,136.55,136.51,14.46]
[1720765474213,14.46,136.56,136.51,14.46]
[1720765474509,4.43920803,136.55,136.51,14.46]
[1720765474717,14.46,136.56,136.51,14.46]
[1720765474891,4.43920803,136.55,136.51,14.46]
[1720765475088,14.46,136.56,136.51,14.46]
[1720765475287,4.43927144,136.55,136.51,14.46]
[1720765475487,14.46,136.56,136.5,29.5993]
[1720765475707,4.43925475,136.55,136.5,29.5993]
[1720765475902,14.46,136.56,136.5,29.5993]
[1720765476120,4.43925475,136.55,136.5,29.5993]
[1720765476405,14.46,136.56,136.5,29.5993]
[1720765476621,4.43926216,136.55,136.5,29.5993]
[1720765476793,14.46,136.56,136.5,29.5993]
[1720765476994,4.43922432,136.55,136.5,29.5993]
[1720765477247,14.46,136.56,136.5,15.1393]
[1720765477512,14.46,136.52,136.46,15.604]
[1720765477714,14.46,136.52,136.47,14.46]
[1720765480013,72.3235,136.55,136.47,14.46]
[1720765480200,14.46,136.53,136.48,14.46]
[1720765480522,4.44084968,136.52,136.48,14.46]
[1720765480919,72.3235,136.55,136.48,14.46]
[1720765480920,14.46,136.53,136.48,14.46]
[1720765481102,4.44084968,136.52,136.48,14.46]
[1720765481293,14.46,136.53,136.48,14.46]
[1720765483396,14.46,136.52,136.47,15.92423592]
[1720765485403,14.46,136.52,136.46,17.06931003]
[1720765485603,14.46,136.52,136.47,14.46]
[1720765487423,21.7849,136.52,136.46,17.06931003]
[1720765487625,14.46,136.51,136.46,31.52931003]
[1720765492438,14.46,136.49,136.42,6.425]
[1720765492602,14.46,136.49,136.44,14.46]
[1720765492924,14.46,136.48,136.43,14.46]
[1720765494124,14.46,136.48,136.42,22.153]
[1720765494334,14.46,136.48,136.43,14.46]
[1720765495227,23.7624,136.52,136.43,14.46]
[1720765495524,14.46,136.5,136.45,14.46]
[1720765496107,14.46,136.49,136.44,14.46]
[1720765496298,20.0,136.51,136.44,14.46]
[1720765496504,14.46,136.5,136.45,14.46]
[1720765497428,6.1461,136.53,136.42,22.153]
[1720765497617,13.4705,136.53,136.47,14.46]
[1720765497924,14.46,136.52,136.47,14.46]
[1720765498125,14.46,136.51,136.46,14.46]
[1720765499232,52.66271172,136.55,136.49,14.46]
[1720765499233,7.66271172,136.55,136.49,14.46]
[1720765499533,17.89953682,136.56,136.5,1.46507209]
[1720765499707,14.46,136.55,136.5,15.9250575]
[1720765499910,14.46,136.54,136.49,14.46]
[1720765500825,7.3233,136.55,136.49,14.46]
[1720765501129,17.89953682,136.56,136.46,1.46504778]
[1720765501322,14.46,136.51,136.46,1.46504778]
[1720765501532,14.46,136.51,136.46,15.92504778]
[1720765501907,14.46,136.52,136.47,14.46]
[1720765502238,14.46,136.54,136.49,14.46]
[1720765502408,14.46,136.54,136.49,15.92503497]
[1720765502616,14.46,136.54,136.5,1.46492764]
[1720765502814,14.46,136.54,136.49,14.46]
[1720765503006,14.46,136.53,136.48,14.46]
[1720765503306,14.46,136.53,136.49,1.464606]
[1720765503636,25.22233682,136.56,136.49,15.924606]
[1720765503808,14.46,136.54,136.49,14.46]
[1720765504224,14.46,136.54,136.5,1.46417681]
[1720765504423,14.46,136.55,136.5,15.92417681]
[1720765504940,13.6128,136.57,136.5,1.46417681]
[1720765505234,14.46,136.54,136.5,1.46417681]
[1720765505427,14.46,136.54,136.49,30.7619]
[1720765505428,14.46,136.53,136.49,16.3019]
[1720765505730,14.46,136.52,136.49,16.3019]
[1720765506108,14.46,136.52,136.45,22.4605]
[1720765506524,7.3239,136.54,136.45,22.4605]
[1720765506824,14.46,136.51,136.46,14.46]
[1720765507003,14.46,136.51,136.45,22.4605]
[1720765507207,14.46,136.51,136.46,14.46]
[1720765508328,14.46,136.5,136.45,22.4605]
[1720765508519,14.46,136.49,136.45,16.0305]
[1720765510435,14.46,136.48,136.42,6.1823]
[1720765510629,14.46,136.48,136.43,14.46]
[1720765511042,14.46,136.49,136.44,14.46]
[1720765512257,6.2411,136.52,136.44,14.46]
[1720765512421,20.0,136.51,136.45,14.46]
[1720765512743,34.46,136.51,136.46,14.46]
[1720765513620,34.46,136.51,136.45,14.46]
[1720765513828,14.46,136.5,136.45,14.46]
[1720765517645,14.46,136.5,136.42,6.1823]
[1720765517825,14.46,136.5,136.45,14.46]
[1720765518245,10.5976945,136.53,136.46,1.46520306]
[1720765518463,14.46,136.51,136.43,1.45243699]
[1720765518644,14.46,136.51,136.46,14.46]
[1720765519446,14.46,136.5,136.45,14.46]
[1720765519621,14.46,136.5,136.46,1.45380685]
[1720765521341,20.0,136.52,136.46,1.45380685]
[1720765521648,20.0,136.52,136.48,14.46]
[1720765521856,14.46,136.54,136.49,15.91326036]